bitfinex-derivatives/quotes_BNBF0:USTF0_20250128
["timestamp","ask_amount","ask_price","bid_price","bid_amount"]
[1738066578695,0.27204353,675.99,674.73,1.10703617]
[1738066578898,0.27204353,676.02,674.73,1.10703617]
[1738066579092,0.27204353,676.01,674.73,1.10703617]
[1738066579295,0.27204353,676.02,674.73,1.10703617]
[1738066579499,0.27204928,676.01,674.73,1.10703617]
[1738066579796,0.27204928,676.0,674.73,1.10703617]
[1738066579994,0.27204928,675.99,674.67,1.10703617]
[1738066580197,0.27204928,676.02,674.67,1.10703617]
[1738066580393,0.27204928,676.01,674.67,1.10703617]
[1738066580592,0.27204928,676.02,674.67,1.10703617]
[1738066580797,0.27204928,676.01,674.67,1.10703617]
[1738066580993,0.29584485,676.03,674.67,1.10703617]
[1738066582498,0.27209239,676.02,674.67,1.10703617]
[1738066582694,0.29585361,676.01,674.67,1.10703617]
[1738066583902,0.29585361,676.01,674.41,1.10703617]
[1738066584101,0.29585361,676.01,674.42,0.29655111]
[1738066587103,1.81815953,676.0,674.42,0.29655111]
[1738066587305,0.27209983,675.99,674.42,0.29655111]
[1738066587504,0.29586674,675.98,674.42,0.29655111]
[1738066587909,0.27209983,675.97,674.42,0.29655111]
[1738066588205,0.29587549,675.96,674.42,0.29655111]
[1738066588404,0.27209983,675.95,674.42,0.29655111]
[1738066588699,0.29588425,675.94,674.42,0.29655111]
[1738066588906,0.27209983,675.93,674.42,0.29655111]
[1738066589302,0.27209983,675.93,674.43,1.10703617]
[1738066589504,0.295893,675.92,674.44,0.29654231]
[1738066589703,0.27211303,675.91,674.44,0.29654231]
[1738066589902,0.29590176,675.9,674.44,0.29654231]
[1738066590102,0.27211303,675.89,674.44,0.29654231]
[1738066591304,0.29591051,675.88,674.44,0.29654231]
[1738066591504,0.27211303,675.87,674.44,0.29654231]
[1738066592900,0.29591051,675.88,674.44,0.29654231]
[1738066593406,0.27207192,675.87,674.44,0.29654231]
[1738066593600,0.29591051,675.88,674.44,0.29654231]
[1738066593798,0.27207818,675.87,674.44,0.29654231]
[1738066594704,0.27207818,675.87,674.45,1.54610549]
[1738066594902,0.27207818,675.87,674.46,0.29653352]
[1738066596008,0.29591051,675.88,674.46,0.29653352]
[1738066596206,0.29591051,675.88,674.49,1.10703617]
[1738066596405,0.29591051,675.88,674.5,0.29651593]
[1738066596607,0.27207232,675.87,674.5,0.29651593]
[1738066598815,0.27207232,675.87,674.6,1.10703617]
[1738066602310,0.29591051,675.88,674.63,1.10703617]
[1738066605427,0.29591051,675.88,674.66,1.10703617]
[1738066608125,0.29591051,675.88,674.76,1.10703617]
[1738066611027,0.29591051,675.88,674.51,1.10703617]
[1738066611028,0.29591051,675.88,674.79,1.10703617]
[1738066614133,0.29591051,675.88,674.76,1.10703617]
[1738066617735,0.29591051,675.88,674.83,1.10703617]
[1738066621236,0.27202264,675.87,674.83,1.10703617]
[1738066622145,0.27202264,675.87,674.89,1.10703617]
[1738066623044,0.29591051,675.88,674.89,1.10703617]
[1738066623235,0.27201983,675.87,674.89,1.10703617]
[1738066624743,0.29591051,675.88,674.89,1.10703617]
[1738066626851,0.29591051,675.88,674.93,1.10703617]
[1738066629450,0.29591051,675.88,674.87,1.10703617]
[1738066632455,0.29591051,675.88,674.8,1.10703617]
[1738066635857,0.29591051,675.88,674.69,1.10703617]
[1738066637754,0.27206795,675.87,674.69,1.10703617]
[1738066638559,0.27206795,675.87,674.68,1.10703617]
[1738066641961,0.27206795,675.87,674.78,1.10703617]
[1738066642153,0.27206784,675.86,674.78,1.10703617]
[1738066642352,0.27206784,675.87,674.78,1.10703617]
[1738066642557,0.27206784,675.86,674.78,1.10703617]
[1738066642755,0.27206784,675.85,674.78,1.10703617]
[1738066642955,0.27206784,675.84,674.78,1.10703617]
[1738066643153,0.29591051,675.88,674.78,1.10703617]
[1738066643857,0.27207267,675.87,674.78,1.10703617]
[1738066644460,0.27207267,675.87,674.73,1.10703617]
[1738066647366,0.27207267,675.87,674.7,1.10703617]
[1738066648867,1.54589944,675.98,674.7,1.10703617]
[1738066649066,0.27206477,675.97,674.7,1.10703617]
[1738066650267,1.10291679,675.99,674.7,1.10703617]
[1738066650566,1.10291679,675.97,674.74,1.10703617]
[1738066653469,1.54576783,676.06,674.64,1.10703617]
[1738066653669,0.27206217,676.05,674.64,1.10703617]
[1738066654969,1.54576783,676.06,674.64,1.10703617]
[1738066655268,0.27205894,676.05,674.64,1.10703617]
[1738066657466,1.54576783,676.06,674.64,1.10703617]
[1738066657665,0.27204707,676.05,674.64,1.10703617]
[1738066658267,1.54576783,676.06,674.64,1.10703617]
[1738066658568,0.27205174,676.05,674.64,1.10703617]
[1738066659274,1.54576783,676.06,674.64,1.10703617]
[1738066659474,1.37497042,676.05,674.78,1.10703617]
[1738066659674,0.27205363,676.04,674.78,1.10703617]
[1738066662475,0.27205363,676.04,674.71,1.10703617]
[1738066662775,0.27205363,676.03,674.71,1.10703617]
[1738066662979,0.27205363,676.02,674.71,1.10703617]
[1738066663177,0.27205363,676.05,674.71,1.10703617]
[1738066663377,0.27205363,676.04,674.71,1.10703617]
[1738066663579,0.27205363,676.05,674.71,1.10703617]
[1738066664875,1.54576783,676.06,674.71,1.10703617]
[1738066665078,1.10291679,676.03,674.76,1.10703617]
[1738066665380,0.27207405,676.02,674.76,1.10703617]
[1738066668481,1.10291679,675.93,674.79,1.10703617]
[1738066668682,0.27207405,675.92,674.79,1.10703617]
[1738066668981,1.10291679,675.93,674.79,1.10703617]
[1738066669177,0.27206591,675.92,674.79,1.10703617]
[1738066670183,0.27206591,675.92,674.54,1.10703617]
[1738066670184,1.10291679,675.82,674.93,1.10703617]
[1738066670478,0.27205513,675.81,674.93,1.10703617]
[1738066671783,1.10291679,675.82,674.93,1.10703617]
[1738066672078,0.27205222,675.81,674.93,1.10703617]
[1738066673485,0.27205222,675.81,674.94,1.10703617]
[1738066673684,0.27205222,675.86,674.94,1.10703617]
[1738066674281,1.10291679,675.87,674.94,1.10703617]
[1738066675986,0.27205697,675.86,674.94,1.10703617]
[1738066676288,1.10291679,675.87,674.94,1.10703617]
[1738066676785,1.10291679,675.93,674.9,1.10703617]
[1738066676988,0.27205462,675.92,674.9,1.10703617]
[1738066677990,1.10291679,675.93,674.9,1.10703617]
[1738066678189,0.27205082,675.92,674.9,1.10703617]
[1738066678886,1.10291679,675.93,674.9,1.10703617]
[1738066679491,1.54576783,676.06,674.87,1.10703617]
[1738066679492,1.10291679,675.96,674.87,1.10703617]
[1738066679698,0.2720393,675.95,674.87,1.10703617]
[1738066681289,1.10291679,675.96,674.87,1.10703617]
[1738066681887,0.27203757,675.95,674.87,1.10703617]
[1738066683794,0.27203757,675.95,674.91,1.10703617]
[1738066683996,0.27203757,676.0,674.91,1.10703617]
[1738066684196,0.27203757,675.99,674.91,1.10703617]
[1738066684396,0.27203757,676.0,674.91,1.10703617]
[1738066684596,0.29586674,675.98,674.91,1.10703617]
[1738066684795,0.27203757,675.97,674.91,1.10703617]
[1738066686994,1.10291679,675.91,674.89,1.10703617]
[1738066687195,0.27203757,675.9,674.89,1.10703617]
[1738066688297,1.10291679,675.91,674.89,1.10703617]
[1738066688597,0.27206617,675.9,674.89,1.10703617]
[1738066688796,1.10291679,675.91,674.89,1.10703617]
[1738066689198,0.29590176,675.9,674.89,1.10703617]
[1738066691000,1.10291679,675.89,674.89,1.10703617]
[1738066694305,1.10291679,675.89,674.27,2.26019884]
[1738066694306,0.29590176,675.9,674.63,1.10703617]
[1738066697304,0.29590176,675.9,674.62,1.10703617]
[1738066699107,0.27208651,675.89,674.62,1.10703617]
[1738066699307,0.29590176,675.9,674.62,1.10703617]
[1738066699506,0.27208917,675.89,674.62,1.10703617]
[1738066700305,0.29590176,675.9,674.62,1.10703617]
[1738066700606,0.27208804,675.89,674.62,1.10703617]
[1738066703410,0.29590176,675.9,674.69,1.10703617]
[1738066704512,1.54599673,675.89,674.69,1.10703617]
[1738066704810,0.29591051,675.88,674.69,1.10703617]
[1738066705912,0.27215906,675.87,674.69,1.10703617]
[1738066706611,0.29591927,675.86,674.69,1.10703617]
[1738066706915,0.29591927,675.86,674.43,1.10703617]
[1738066707916,0.27215562,675.85,674.43,1.10703617]
[1738066708110,0.29592803,675.84,674.43,1.10703617]
[1738066708311,0.27216011,675.83,674.43,1.10703617]
[1738066708512,0.29593678,675.82,674.43,1.10703617]
[1738066709715,0.2721606,675.81,674.43,1.10703617]
[1738066709911,0.29594554,675.8,674.43,1.10703617]
[1738066710217,0.2721606,675.79,674.33,1.10703617]
[1738066710412,0.2959543,675.78,674.33,1.10703617]
[1738066710717,0.27218145,675.77,674.33,1.10703617]
[1738066710927,0.29596306,675.76,674.33,1.10703617]
[1738066711110,0.27218145,675.75,674.33,1.10703617]
[1738066711514,0.29597182,675.74,674.33,1.10703617]
[1738066711712,0.27218145,675.73,674.33,1.10703617]
[1738066712113,0.29598058,675.72,674.33,1.10703617]
[1738066712511,0.27218145,675.71,674.33,1.10703617]
[1738066712714,0.29598934,675.7,674.33,1.10703617]
[1738066712912,0.27218145,675.69,674.33,1.10703617]
[1738066714021,0.27216647,675.68,674.33,1.10703617]
[1738066714223,0.27216647,675.69,674.4,1.10703617]
[1738066714522,0.27216647,675.68,674.4,1.10703617]
[1738066714718,0.27216647,675.69,674.4,1.10703617]
[1738066714918,0.27216647,675.68,674.4,1.10703617]
[1738066715215,0.29598934,675.7,674.4,1.10703617]
[1738066715216,0.27216647,675.67,674.4,1.10703617]
[1738066715438,0.27216647,675.66,674.4,1.10703617]
[1738066715625,0.27216647,675.69,674.4,1.10703617]
[1738066715818,0.27216647,675.68,674.4,1.10703617]
[1738066716024,0.27216647,675.69,674.4,1.10703617]
[1738066716220,0.27216647,675.68,674.4,1.10703617]
[1738066716520,0.27216647,675.67,674.4,1.10703617]
[1738066716716,0.27216647,675.69,674.4,1.10703617]
[1738066716917,0.27216647,675.68,674.4,1.10703617]
[1738066717224,0.27216647,675.67,674.42,1.10703617]
[1738066717419,0.27216647,675.69,674.42,1.10703617]
[1738066717618,0.27216647,675.68,674.42,1.10703617]
[1738066717820,0.27216647,675.69,674.42,1.10703617]
[1738066718124,0.27216647,675.68,674.42,1.10703617]
[1738066718322,0.27216647,675.69,674.42,1.10703617]
[1738066718519,0.27216647,675.68,674.42,1.10703617]
[1738066718717,0.27216647,675.69,674.42,1.10703617]
[1738066718921,0.27216647,675.68,674.42,1.10703617]
[1738066719123,0.27216647,675.69,674.42,1.10703617]
[1738066719322,0.27216647,675.68,674.42,1.10703617]
[1738066719527,0.27216647,675.69,674.42,1.10703617]
[1738066719723,0.27216647,675.68,674.42,1.10703617]
[1738066720032,0.27216647,675.67,674.42,1.10703617]
[1738066720326,0.27216647,675.66,674.42,1.10703617]
[1738066720625,0.27216647,675.65,674.42,1.10703617]
[1738066720825,0.27216647,675.64,674.42,1.10703617]
[1738066721125,0.27216647,675.63,674.42,1.10703617]
[1738066721425,0.27216647,675.62,674.42,1.10703617]
[1738066721626,0.27216647,675.61,674.42,1.10703617]
[1738066721924,0.27216647,675.6,674.42,1.10703617]
[1738066722223,0.27216647,675.59,674.42,1.10703617]
[1738066722420,0.27216647,675.69,674.42,1.10703617]
[1738066722625,0.27216647,675.68,674.42,1.10703617]
[1738066722819,0.27216647,675.67,674.42,1.10703617]
[1738066723021,0.27216647,675.69,674.42,1.10703617]
[1738066723224,0.27216647,675.68,674.42,1.10703617]
[1738066724125,0.27216647,675.68,674.2,1.10703617]
[1738066724126,0.27216647,675.68,674.41,1.10703617]
[1738066725227,0.29599372,675.69,674.41,1.10703617]
[1738066725228,0.27218591,675.67,674.41,1.10703617]
[1738066725428,0.56819277,675.66,674.41,1.10703617]
[1738066725723,0.56819715,675.65,674.41,1.10703617]
[1738066725927,0.27218591,675.64,674.41,1.10703617]
[1738066727424,0.27218591,675.64,674.35,1.10703617]
[1738066728425,0.56820153,675.64,674.35,1.10703617]
[1738066728626,0.27218591,675.63,674.35,1.10703617]
[1738066729029,0.29601562,675.64,674.35,1.10703617]
[1738066729223,0.27222219,675.63,674.35,1.10703617]
[1738066729424,0.29602439,675.62,674.35,1.10703617]
[1738066729726,0.27222219,675.61,674.35,1.10703617]
[1738066729923,0.29603315,675.6,674.35,1.10703617]
[1738066730127,0.27222219,675.59,674.35,1.10703617]
[1738066730631,0.27222219,675.59,674.33,1.10703617]
[1738066733626,0.27222219,675.59,674.34,1.10703617]
[1738066735831,0.29603315,675.6,674.34,1.10703617]
[1738066736032,0.2721981,675.59,674.34,1.10703617]
[1738066739634,0.2721981,675.59,674.4,1.10703617]
[1738066740132,0.27216856,675.58,674.4,1.10703617]
[1738066740331,0.27216856,675.57,674.4,1.10703617]
[1738066740529,0.27216856,675.56,674.4,1.10703617]
[1738066740735,0.27216856,675.59,674.4,1.10703617]
[1738066740934,0.27217478,675.58,674.4,1.10703617]
[1738066741145,0.27217478,675.57,674.4,1.10703617]
[1738066741433,0.27217478,675.56,674.4,1.10703617]
[1738066741634,0.27217478,675.55,674.4,1.10703617]
[1738066741835,0.27217478,675.54,674.4,1.10703617]
[1738066742035,0.27217478,675.59,674.4,1.10703617]
[1738066742234,0.27217478,675.58,674.4,1.10703617]
[1738066742431,0.27217478,675.59,674.4,1.10703617]
[1738066742935,0.27217478,675.59,674.53,1.10703617]
[1738066745843,1.10291679,675.53,674.56,1.10703617]
[1738066746142,0.27220902,675.52,674.56,1.10703617]
[1738066748537,1.10291679,675.53,674.56,1.10703617]
[1738066749144,1.10291679,675.51,674.49,1.10703617]
[1738066751945,0.29607698,675.5,674.18,1.10703617]
[1738066753041,0.27224523,675.49,674.18,1.10703617]
[1738066753339,0.29608574,675.48,674.18,1.10703617]
[1738066754744,0.27223472,675.47,674.18,1.10703617]
[1738066754946,0.29608574,675.48,674.18,1.10703617]
[1738066755245,0.27223683,675.47,674.23,1.10703617]
[1738066755447,0.29608574,675.48,674.23,1.10703617]
[1738066755643,0.27223539,675.47,674.23,1.10703617]
[1738066755947,0.29608574,675.48,674.23,1.10703617]
[1738066757944,0.29608574,675.48,674.33,1.10703617]
[1738066759049,0.27221219,675.47,674.33,1.10703617]
[1738066759750,0.29608574,675.48,674.33,1.10703617]
[1738066760850,0.29608574,675.48,674.4,1.10703617]
[1738066763458,0.29608574,675.48,674.38,1.10703617]
[1738066765758,0.29608574,675.48,674.28,1.10703617]
[1738066771559,0.29608574,675.48,674.22,1.10703617]
[1738066773958,0.27222939,675.47,674.22,1.10703617]
[1738066774355,0.27222939,675.47,674.2,1.10703617]
[1738066774561,0.29608574,675.48,674.2,1.10703617]
[1738066774759,0.2722344,675.47,674.2,1.10703617]
[1738066775661,0.29608574,675.48,674.2,1.10703617]
[1738066776160,0.2722335,675.47,674.2,1.10703617]
[1738066777361,0.2722335,675.47,674.36,1.10703617]
[1738066777862,0.29608574,675.48,674.36,1.10703617]
[1738066778063,0.27223049,675.47,674.36,1.10703617]
[1738066782868,0.29608574,675.48,674.36,1.10703617]
[1738066783063,0.27223884,675.47,674.36,1.10703617]
[1738066784669,0.27223884,675.47,674.39,1.10703617]
[1738066785266,0.29608574,675.48,674.39,1.10703617]
[1738066786569,0.27222208,675.47,674.39,1.10703617]
[1738066787976,0.27222208,675.47,674.45,1.10703617]
[1738066790873,1.10291679,675.46,674.42,1.10703617]
[1738066791072,0.27222208,675.45,674.42,1.10703617]
[1738066793772,1.10291679,675.46,674.42,1.10703617]
[1738066794173,0.29608574,675.48,674.35,1.10703617]
[1738066796978,0.29608574,675.48,674.31,1.10703617]
[1738066800785,0.29608574,675.48,674.18,1.10703617]
[1738066801485,0.2722844,675.47,674.18,1.10703617]
[1738066801684,0.29609451,675.46,674.18,1.10703617]
[1738066801881,0.2722844,675.45,674.18,1.10703617]
[1738066802085,0.29610328,675.44,674.18,1.10703617]
[1738066802287,0.2722844,675.43,674.18,1.10703617]
[1738066802489,0.29611204,675.42,674.18,1.10703617]
[1738066802690,0.27230678,675.41,674.18,1.10703617]
[1738066802888,0.29612081,675.4,674.18,1.10703617]
[1738066803589,0.29612081,675.4,674.17,1.10703617]
[1738066806291,0.29612081,675.4,674.16,0.29666548]
[1738066813691,0.27228903,675.39,674.16,0.29666548]
[1738066813898,0.29612958,675.38,674.16,0.29666548]
[1738066814095,0.27228903,675.37,674.16,0.29666548]
[1738066814295,0.568423,675.37,674.16,0.29666548]
[1738066814593,0.27228903,675.36,674.16,0.29666548]
[1738066815893,0.27228032,675.35,674.16,0.29666548]
[1738066816091,0.27228032,675.36,674.16,0.29666548]
[1738066816296,0.29613397,675.37,674.16,0.29666548]
[1738066818697,0.29613397,675.37,674.22,1.10703617]
[1738066819000,0.27226328,675.36,674.22,1.10703617]
[1738066819397,0.29613397,675.37,674.22,1.10703617]
[1738066819699,0.2722529,675.36,674.22,1.10703617]
[1738066821502,0.2722529,675.36,674.16,0.29666548]
[1738066821503,0.2722529,675.36,674.3,1.10703617]
[1738066821699,0.29613397,675.37,674.3,1.10703617]
[1738066824406,0.29613397,675.37,674.16,0.29666548]
[1738066831595,0.29613397,675.37,674.38,1.10703617]
[1738066833402,0.27222605,675.36,674.38,1.10703617]
[1738066834498,0.27222605,675.36,674.39,1.10703617]
[1738066837403,0.27222605,675.36,674.38,1.10703617]
[1738066839104,0.29613397,675.37,674.38,1.10703617]
[1738066843021,0.29613397,675.37,674.4,1.10703617]
[1738066846412,0.27226791,675.36,674.4,1.10703617]
[1738066846613,0.27226964,675.35,674.4,1.10703617]
[1738066846815,0.29613397,675.37,674.35,1.10703617]
[1738066846816,0.27226964,675.36,674.35,1.10703617]
[1738066850120,0.27226964,675.36,674.29,1.10703617]
[1738066850519,0.29613397,675.37,674.29,1.10703617]
[1738066853033,0.29613397,675.37,674.42,1.10703617]
[1738066855623,0.29613397,675.37,674.47,1.10703617]
[1738066860425,0.29613397,675.37,674.49,1.10703617]
[1738066862923,0.29613397,675.37,674.46,1.10703617]
[1738066865527,0.29613397,675.37,674.53,1.10703617]
[1738066867936,0.29613397,675.37,674.51,1.10703617]
[1738066871632,0.29613397,675.37,674.17,0.70427357]
[1738066873141,0.29613397,675.37,674.18,0.29665667]
[1738066874242,0.29613397,675.37,674.48,1.10371015]
[1738066874743,1.54650629,675.77,674.48,1.10371015]
[1738066874941,0.2721426,675.76,674.48,1.10371015]
[1738066876037,0.2721426,675.8,674.48,1.10371015]
[1738066876243,0.2721426,675.79,674.48,1.10371015]
[1738066876441,0.2721426,675.8,674.48,1.10371015]
[1738066876743,0.2721171,675.79,674.48,1.10371015]
[1738066876945,1.54624288,675.86,674.49,1.10371015]
[1738066876946,0.2721171,675.8,674.49,1.10371015]
[1738066877145,0.2721171,675.79,674.49,1.10371015]
[1738066877450,0.2721171,675.78,674.49,1.10371015]
[1738066877646,0.2721171,675.85,674.49,1.10371015]
[1738066877847,0.2721171,675.84,674.49,1.10371015]
[1738066878046,0.2721171,675.85,674.49,1.10371015]
[1738066878850,0.29592803,675.84,674.49,1.10371015]
[1738066879044,0.2721171,675.83,674.49,1.10371015]
[1738066879446,0.29593678,675.82,674.49,1.10371015]
[1738066879751,0.2721171,675.81,674.5,1.10371015]
[1738066879952,0.29594554,675.8,674.5,1.10371015]
[1738066880153,0.2721171,675.79,674.5,1.10371015]
[1738066880344,0.2959543,675.78,674.5,1.10371015]
[1738066880548,0.2721171,675.77,674.5,1.10371015]
[1738066880750,0.29596306,675.76,674.5,1.10371015]
[1738066881051,0.2721171,675.75,674.5,1.10371015]
[1738066881244,0.29597182,675.74,674.5,1.10371015]
[1738066881445,0.2721171,675.73,674.5,1.10371015]
[1738066881947,0.29598058,675.72,674.5,1.10371015]
[1738066883152,0.29598058,675.72,674.49,1.10371015]
[1738066885854,0.29598058,675.72,674.3,1.10371015]
[1738066886355,1.54652347,675.71,674.3,1.10371015]
[1738066886555,0.29598934,675.7,674.3,1.10371015]
[1738066887652,0.29598934,675.7,674.18,0.29665667]
[1738066890153,0.29598934,675.7,674.26,1.10302971]
[1738066890556,0.27222487,675.69,674.26,1.10302971]
[1738066890852,0.2959981,675.68,674.26,1.10302971]
[1738066891055,0.27222487,675.67,674.26,1.10302971]
[1738066891255,0.29601124,675.65,674.26,1.10302971]
[1738066891457,0.27222487,675.64,674.26,1.10302971]
[1738066891657,0.29602001,675.63,674.26,1.10302971]
[1738066891857,0.27222487,675.62,674.26,1.10302971]
[1738066892059,0.29602877,675.61,674.26,1.10302971]
[1738066892359,0.27226942,675.6,674.26,1.10302971]
[1738066892555,0.29603753,675.59,674.26,1.10302971]
[1738066892756,0.27226942,675.58,674.26,1.10302971]
[1738066893157,0.2960463,675.57,674.26,1.10302971]
[1738066893358,1.10721914,675.52,674.28,1.10302971]
[1738066893554,0.27226942,675.51,674.28,1.10302971]
[1738066893757,0.29607698,675.5,674.28,1.10302971]
[1738066893958,0.27226942,675.49,674.28,1.10302971]
[1738066894158,0.29608574,675.48,674.28,1.10302971]
[1738066894356,0.27226942,675.47,674.28,1.10302971]
[1738066894558,0.29609451,675.46,674.28,1.10302971]
[1738066894760,0.27226942,675.45,674.28,1.10302971]
[1738066896473,0.27226942,675.45,674.21,1.10302971]
[1738066897165,0.27223701,675.44,674.21,1.10302971]
[1738066897366,0.27223701,675.43,674.21,1.10302971]
[1738066897567,0.27223701,675.42,674.21,1.10302971]
[1738066897761,0.27223701,675.41,674.21,1.10302971]
[1738066897963,0.27223701,675.4,674.21,1.10302971]
[1738066898166,0.27223701,675.45,674.21,1.10302971]
[1738066898363,0.27223701,675.44,674.21,1.10302971]
[1738066898563,0.27222165,675.43,674.21,1.10302971]
[1738066898764,0.27222165,675.42,674.21,1.10302971]
[1738066898960,0.27222165,675.41,674.21,1.10302971]
[1738066899162,0.27222165,675.4,674.21,1.10302971]
[1738066899365,0.29609451,675.46,674.21,1.10302971]
[1738066899663,0.27221704,675.45,674.21,1.10302971]
[1738066899862,0.27221704,675.45,674.18,0.29665667]
[1738066899863,0.27221704,675.45,674.28,1.10302971]
[1738066900170,0.27222344,675.44,674.28,1.10302971]
[1738066900368,0.27222344,675.45,674.28,1.10302971]
[1738066900571,0.27222344,675.44,674.28,1.10302971]
[1738066900765,0.27222344,675.45,674.28,1.10302971]
[1738066900969,0.27222344,675.44,674.28,1.10302971]
[1738066901166,0.27222344,675.45,674.28,1.10302971]
[1738066901369,0.27222344,675.44,674.28,1.10302971]
[1738066901668,0.27222344,675.43,674.28,1.10302971]
[1738066901864,0.29609451,675.46,674.28,1.10302971]
[1738066902463,0.27219679,675.45,674.28,1.10302971]
[1738066902662,0.29609451,675.46,674.34,1.10302971]
[1738066906172,0.29609451,675.46,674.41,1.10302971]
[1738066907570,0.2721868,675.45,674.41,1.10302971]
[1738066907772,0.29609451,675.46,674.41,1.10302971]
[1738066909072,0.29609451,675.46,674.39,1.10302971]
[1738066912373,0.29609451,675.46,674.42,1.10302971]
[1738066915875,0.29609451,675.46,674.38,1.10302971]
[1738066919077,0.29609451,675.46,674.41,1.10302971]
[1738066922276,0.29609451,675.46,674.36,1.10302971]
[1738066925984,0.29609451,675.46,674.39,1.10302971]
[1738066926882,1.10721914,675.85,674.39,1.10302971]
[1738066927084,0.29592803,675.84,674.4,0.2965599]
[1738066928383,0.27210256,675.83,674.4,0.2965599]
[1738066929684,0.27210256,675.83,674.49,1.10302971]
[1738066930585,0.27211143,675.82,674.49,1.10302971]
[1738066930785,0.27211143,675.83,674.49,1.10302971]
[1738066930985,0.27211143,675.82,674.49,1.10302971]
[1738066931178,0.27211143,675.81,674.49,1.10302971]
[1738066931380,0.27211143,675.83,674.49,1.10302971]
[1738066931585,0.27211143,675.82,674.49,1.10302971]
[1738066931782,0.27211143,675.81,674.49,1.10302971]
[1738066931981,0.27211143,675.8,674.49,1.10302971]
[1738066932183,0.27211143,675.8,674.4,0.2965599]
[1738066932184,0.27211143,675.79,674.53,1.10302971]
[1738066932486,0.56806573,675.78,674.53,1.10302971]
[1738066932686,0.56807011,675.77,674.53,1.10302971]
[1738066932889,0.56807449,675.76,674.53,1.10302971]
[1738066933087,0.56807887,675.75,674.53,1.10302971]
[1738066933286,0.27211143,675.74,674.53,1.10302971]
[1738066933900,0.29596744,675.75,674.53,1.10302971]
[1738066934087,0.2721401,675.74,674.53,1.10302971]
[1738066934282,0.2959762,675.73,674.53,1.10302971]
[1738066935186,0.2959762,675.73,674.5,1.10302971]
[1738066936887,0.27214095,675.72,674.5,1.10302971]
[1738066937787,0.27214095,675.72,674.52,1.10302971]
[1738066939587,0.2959762,675.73,674.52,1.10302971]
[1738066939887,0.27218689,675.72,674.52,1.10302971]
[1738066940089,0.27218689,675.72,674.53,1.10302971]
[1738066941089,0.29598496,675.71,674.53,1.10302971]
[1738066941289,0.27218689,675.7,674.53,1.10302971]
[1738066941484,0.29599372,675.69,674.53,1.10302971]
[1738066941790,0.27218689,675.68,674.53,1.10302971]
[1738066942284,0.29600248,675.67,674.53,1.10302971]
[1738066942486,0.27218689,675.66,674.53,1.10302971]
[1738066942687,0.29601124,675.65,674.53,1.10302971]
[1738066942991,0.27218689,675.64,674.53,1.10302971]
[1738066943187,1.10721914,675.56,674.43,1.10302971]
[1738066943386,0.27218689,675.55,674.43,1.10302971]
[1738066946293,0.27218689,675.55,674.4,0.2965599]
[1738066946487,0.27218689,675.54,674.4,0.2965599]
[1738066946687,0.27218689,675.62,674.4,0.2965599]
[1738066946887,0.56821566,675.61,674.4,0.2965599]
[1738066947091,0.56822004,675.6,674.4,0.2965599]
[1738066947388,0.56822442,675.59,674.4,0.2965599]
[1738066947593,0.5682288,675.58,674.4,0.2965599]
[1738066947792,0.27218689,675.57,674.4,0.2965599]
[1738066949990,0.56823319,675.57,674.4,0.2965599]
[1738066950195,0.27218689,675.56,674.4,0.2965599]
[1738066952796,0.29605506,675.55,674.4,0.2965599]
[1738066952996,0.27218689,675.54,674.4,0.2965599]
[1738066953295,0.29606383,675.53,674.4,0.2965599]
[1738066953491,0.27218689,675.52,674.4,0.2965599]
[1738066953696,0.5682551,675.52,674.4,0.2965599]
[1738066953896,0.27218689,675.51,674.4,0.2965599]
[1738066972208,0.29606821,675.52,674.4,0.2965599]
[1738066973309,0.29606821,675.52,674.41,1.10302971]
[1738066976811,0.29606821,675.52,674.4,0.2965599]
[1738066979811,0.29606821,675.52,674.43,1.10302971]
[1738066983019,0.29606821,675.52,674.61,1.10302971]
[1738066985417,0.29606821,675.52,674.53,1.10302971]
[1738066986617,1.54610549,675.89,674.53,1.10302971]
[1738066986819,0.29591051,675.88,674.53,1.10302971]
[1738066988825,0.29591051,675.88,674.47,1.10302971]
[1738066989324,0.29591051,675.88,674.48,0.29652473]
[1738067007039,0.27203612,675.87,674.48,0.29652473]
[1738067007836,0.29591051,675.88,674.48,0.29652473]
[1738067008042,0.27203536,675.87,674.48,0.29652473]
[1738067008243,0.27203609,675.86,674.48,0.29652473]
[1738067008435,0.27203609,675.87,674.48,0.29652473]
[1738067008638,0.27203609,675.86,674.55,1.10302971]
[1738067008835,0.27203609,675.85,674.56,0.29648956]
[1738067009139,0.27203609,675.84,674.56,0.29648956]
[1738067009340,0.27203609,675.83,674.56,0.29648956]
[1738067009537,0.27203609,675.82,674.56,0.29648956]
[1738067009736,0.27203609,675.87,674.56,0.29648956]
[1738067009936,0.27203609,675.86,674.56,0.29648956]
[1738067010142,0.27203609,675.85,674.56,0.29648956]
[1738067010337,0.27203609,675.87,674.56,0.29648956]
[1738067010540,0.27203609,675.86,674.56,0.29648956]
[1738067010741,0.27203609,675.87,674.56,0.29648956]
[1738067010941,0.27203609,675.86,674.56,0.29648956]
[1738067011136,0.27203609,675.85,674.56,0.29648956]
[1738067011337,0.27203609,675.84,674.63,1.10302971]
[1738067011538,0.27203609,675.87,674.63,1.10302971]
[1738067011743,0.27203609,675.86,674.63,1.10302971]
[1738067012043,0.27203609,675.85,674.63,1.10302971]